Cogmind - Beta 10.2 @@@ ROGUE MODE // 2021.10.14 @ 19:43:32 Player: Patches Result: Destroyed by as-84722 with Assembled Heavy Rifle Performance ------------- Evolutions (0) 0 Regions Visited (2) 400 Robots Destroyed (11) 55 Value Destroyed (263) 263 Prototype IDs (0) 0 Alien Tech Used (0) 0 Bonus (0) 0 TOTAL SCORE: 718 Bonus ------- None Cogmind --------- Core Integrity 0/250 Matter 300/300 Energy 99/100 System Corruption 0% Temperature Cool (0) Movement Core (100) Ox1 Location -10/Mines Parts ------- > --- POWER (1) -------- (None) > --- PROPULSION (2) --- (None) > --- UTILITY (2) ------ Small Storage Unit > --- WEAPON (2) ------- Mining Claw > --- INVENTORY (6) ---- Ion Engine Aluminum Leg Aluminum Leg Assault Rifle Peak State ------------ > --- POWER ------------ Light Nuclear Core > --- PROPULSION ------- Wheel Compact Wheel > --- UTILITY ---------- Small Storage Unit Terrain Scanner > --- WEAPON ----------- Particle Gun Assault Rifle > --- INVENTORY -------- Ion Engine Aluminum Leg Aluminum Leg Grenade Launcher Mining Claw [Rating: 10] Favorites ----------- Power Ion Engine Engine Ion Engine Power Core Light Nuclear Core Propulsion Wheel Treads Light Treads Wheel Wheel Utility Small Storage Unit Device Terrain Scanner Storage Small Storage Unit Weapon Assault Rifle Energy Gun EM Pulse Gun Ballistic Gun Assault Rifle Launcher Grenade Launcher Slashing Weapon Mining Claw Build | -11 -10 -10 ------- Run | Scr Mat Min Slots Evolved . | . . . Power . | . . . Propulsion . | . . . Utility . | . . . Weapon . | . . . Parts Attached 18 | 7 6 5 Power 2 | 1 . 1 Engine 1 | 1 . . Core 1 | . . 1 Reactor . | . . . Propulsion 5 | 3 2 . Treads 1 | 1 . . Leg . | . . . Wheel 4 | 2 2 . Hover . | . . . Flight . | . . . Utility 2 | 1 1 . Device 1 | . 1 . Storage 1 | 1 . . Processor . | . . . Hackware . | . . . Protection . | . . . Artifact . | . . . Weapon 9 | 2 3 4 Energy Gun 3 | 1 1 1 Energy Cannon . | . . . Ballistic Gun 2 | 1 1 . Ballistic Cannon . | . . . Launcher 2 | . . 2 Special Weapon . | . . . Impact Weapon . | . . . Slashing Weapon 2 | . 1 1 Piercing Weapon . | . . . Special Melee Weapon . | . . . Unidentified Prototypes . | . . . Parts Lost 8 | . 1 7 Power 1 | . . 1 Propulsion 3 | . 1 2 Utility 1 | . . 1 Weapon 3 | . . 3 Highest Loss Streak 7 | . 1 7 Average Slot Usage (%) 94 | . 94 95 Engine 11 | . 14 6 Core 2 | . . 7 Wheel 26 | . 27 25 Device 10 | . 9 13 Storage 14 | . 14 14 Energy Gun 13 | . 14 12 Ballistic Gun 10 | . 9 12 Slashing Weapon 3 | . 4 1 Naked Turns . | . . . Heaviest Build 14 | 12 14 14 Greatest Support 26 | 26 26 26 Greatest Overweight (x) 2 | . . 2 Average Overweight (x) . | . . . Largest Inventory Capacity 6 | 6 6 6 Average Capacity 5 | 4 6 6 Most Carried 6 | 4 6 6 Average Carried 5 | 3 5 5 Final Capacity 6 | 6 6 6 Final Carried 6 | 4 6 4 Class Distribution -------------------- 100% | Mutant Dominant Class ---------------- Mutant | -10/Materials Mutant | -10/Mines Resources | -11 -10 -10 ----------- Run | Scr Mat Min Matter Collected 465 | 279 94 92 Remotely . | . . . Salvage Created 419 | 81 161 177 Parts 15 | . 5 10 Haulers Intercepted . | . . . Recyclers Shooed . | . . . Parts Field Recycled . | . . . Retrieved Matter . | . . . Parts Self-Destructed . | . . . Prevented . | . . . Kills | -11 -10 -10 ------- Run | Scr Mat Min Combat Hostiles Destroyed 13 | . 5 8 Melee 1 | . . 1 Guns 7 | . 4 3 AOE 5 | . 1 4 Classes Destroyed 6 | 1 3 2 Worker 1 | . 1 . Tunneler 1 | . . 1 Recycler 1 | 1 . . Swarmer 3 | . 3 . Grunt 5 | . 2 3 Assembled 5 | . . 5 Best Kill Streak 6 | 1 4 6 Combat Bots Only 5 | . 3 5 Max Kills in Single Turn 3 | 1 2 3 Gunslinging . | . . . Exploded 3 | . 1 3 Melee 1 | . . 1 Uniques/NPCs Destroyed . | . . . Combat | -11 -10 -10 -------- Run | Scr Mat Min Damage Taken 795 | . 224 571 Core 258 | . 60 198 Absorbed by Shields . | . . . Core Remaining (%) 100 | 100 . . Volleys Fired 35 | 3 16 16 Largest 2 | 1 2 2 Hottest 85 | 20 60 85 Shots Fired 61 | 3 29 29 Gun 58 | 3 29 26 Cannon . | . . . Launcher 3 | . . 3 Special . | . . . Kinetic 30 | 3 13 14 Thermal 1 | . . 1 Explosive 3 | . . 3 Electromagnetic 27 | . 16 11 Robot Hit Streak 11 | 3 11 9 Robot Miss Streak 5 | . 5 2 Penetration Max . | . . . Secondary Targets . | . . . Shots Hit Robots 43 | 3 20 20 Core Hits 28 | 2 8 18 Critical Hits . | . . . Critical Kills . | . . . Critical Parts Destroyed . | . . . Melee Attacks 3 | . . 3 Impact . | . . . Slashing 3 | . . 3 Piercing . | . . . Sneak Attacks . | . . . Combat Hostiles . | . . . Follow-up Attacks . | . . . Damage Inflicted 1015 | 37 455 523 Guns 521 | 37 250 234 Cannons . | . . . Explosions 438 | . 205 233 Melee 56 | . . 56 Ramming . | . . . Kinetic 232 | 37 83 112 Thermal 220 | . 205 15 Explosive 233 | . . 233 Electromagnetic 274 | . 167 107 Impact . | . . . Slashing 56 | . . 56 Piercing . | . . . Highest Corruption . | . . . Average Corruption . | . . . Corruption Purged . | . . . Overload Shots . | . . . Overflow Damage 13 | . 13 . Projectiles . | . . . Explosions 13 | . 13 . Melee . | . . . Knockbacks . | . . . Impact . | . . . Kinetic . | . . . Secondary . | . . . Self-Inflicted Damage 61 | . 57 4 Shots 3 | . 2 1 Rammed . | . . . Targets Rammed . | . . . Kicked . | . . . Crushed . | . . . Highest Temperature 42 | . 42 30 Average Temperature 17 | . 17 16 Received Heat Transfer 112 | . 72 40 Siege Activations . | . . . Robots Corrupted . | . . . Combat Hostiles . | . . . Parts Fried 1 | . 1 . Impact Corruptions . | . . . Robots Melted . | . . . Combat Hostiles . | . . . Parts Melted . | . . . Heat Transferred 187 | . 150 37 Parts Sabotaged . | . . . Parts Stolen . | . . . Parts Stripped . | . . . Power Chain Reactions 3 | . 3 . Missiles Intercepted . | . . . Alert | -11 -10 -10 ------- Run | Scr Mat Min Peak Influence 161 | 5 161 127 Initial 62 | . 3 62 Average 65 | 2 61 97 Maximum Alert Level . | . . . Low Security (%) 100 | 100 100 100 Level 1 . | . . . Level 2 . | . . . Level 3 . | . . . Level 4 . | . . . Level 5 . | . . . High Security . | . . . Max Security . | . . . Squads Dispatched 1 | . 1 . Investigation 1 | . 1 . Extermination . | . . . Reinforcement . | . . . Assault . | . . . Garrison . | . . . Intercept . | . . . Construction Impeded . | . . . Haulers Reinforced . | . . . Stealth | -11 -10 -10 --------- Run | Scr Mat Min Distress Signals 2 | . 2 . Communications Jammed . | . . . Distress Signals . | . . . Times Spotted 26 | . 6 20 Peak Tracking Total 12 | . 4 12 Tactical Retreats . | . . . Traps | -11 -10 -10 ------- Run | Scr Mat Min Traps Triggered 1 | . 1 . Indirectly . | . . . Trap Hack Attempts . | . . . Triggered . | . . . Disarmed . | . . . Reprogrammed . | . . . Reused . | . . . Traps Extracted . | . . . Installed . | . . . Triggered . | . . . Machines | -11 -10 -10 ---------- Run | Scr Mat Min Machines Disabled 1 | . 1 . Max in Single Turn 1 | . 1 . Machines Sabotaged . | . . . Garrisons Compromised . | . . . Overloaded Fab Kills . | . . . Fab Network Shutdowns . | . . . Hacking | -11 -10 -10 --------- Run | Scr Mat Min Machines Accessed 3 | . 3 . Terminals 2 | . 2 . Fabricators . | . . . Repair Stations . | . . . Recycling Units 1 | . 1 . Scanalyzers . | . . . Garrison Access . | . . . Total Hacks 10 | . 10 . Successful 7 | . 7 . Failed 3 | . 3 . Catastrophic . | . . . Database Lockouts . | . . . Manual 5 | . 5 . Terminals 7 | . 7 . Fabricators . | . . . Repair Stations . | . . . Recycling Units 3 | . 3 . Scanalyzers . | . . . Garrison Access . | . . . Terminal Hacks 2 | . 2 . Locate Traps 1 | . 1 . Registered Prototypes 1 | . 1 . Fabricator Hacks . | . . . Repair Station Hacks . | . . . Recycling Unit Hacks 2 | . 2 . Report Inventory 1 | . 1 . Retrieve Components 1 | . 1 . Scanalyzer . | . . . Garrison Access Hacks . | . . . Unauthorized Hacks 3 | . 3 . Terminals 2 | . 2 . Track 1 | . 1 . Botnet 1 | . 1 . Fabricators . | . . . Repair Stations . | . . . Recycling Units 1 | . 1 . Reject 1 | . 1 . Scanalyzers . | . . . Garrison Access . | . . . Data Cores Recovered . | . . . Used . | . . . Hacking Detections 3 | . 3 . Full Trace Events . | . . . Feedback Events . | . . . Feedback Blocked . | . . . Robot Schematics Acquired . | . . . Robots Built . | . . . Matter . | . . . Time . | . . . Total Robot Build Rating . | . . . Part Schematics Acquired . | . . . Parts Built . | . . . Matter . | . . . Time . | . . . Total Part Build Rating . | . . . Parts Repaired . | . . . Time . | . . . Parts Recycled . | . . . Recycled Matter . | . . . Retrieved Matter . | . . . Retrieved Components . | . . . Parts Scanalyzed . | . . . Part Schematics Acquired . | . . . Parts Damaged . | . . . Bothacking | -11 -10 -10 ------------ Run | Scr Mat Min Used RIF Installer . | . . . Robots Hacked . | . . . Non-combat . | . . . Combat . | . . . Robot Hacks Applied . | . . . Relay Couplers Released . | . . . Robots Rewired . | . . . Allies Hacked . | . . . Hacks Repelled . | . . . Allies | -11 -10 -10 -------- Run | Scr Mat Min Total Allies . | . . . Largest Group . | . . . Highest-Rated Group . | . . . Highest-Rated Ally . | . . . Total Orders . | . . . Ally Attacks . | . . . Total Damage . | . . . Kills . | . . . Allies Corrupted . | . . . Allies Melted . | . . . Intel | -11 -10 -10 ------- Run | Scr Mat Min Robot Analysis Total . | . . . Derelict Logs Recovered . | . . . Drone Launches . | . . . Drone Recoveries . | . . . Exploration | -11 -10 -10 ------------- Run | Scr Mat Min Turns Passed 586 | 73 332 181 Spaces Moved 478 | 70 293 115 Core 45 | 41 . 4 Treads . | . . . Legs . | . . . Wheels 433 | 29 293 111 Hover . | . . . Flight . | . . . Fastest Speed 50 | 50 80 90 Average Speed 83 | 66 85 90 Slowest Speed 150 | 90 90 150 Overloaded Moves . | . . . Propulsion Burnouts . | . . . Robots Hopped . | . . . Cave-ins Triggered . | . . . Exploration Rate (%) 26 | 5 43 32 Regions Visited 2 Branch Regions 1 Pre-discovered Areas . | . . . Known Exits Taken . | . . . Unknown Exits Taken 2 | 1 1 . Scrap Searched . | . . . Spaces Dug . | . . . Terrain Destroyed 23 | . 5 18 Melee . | . . . Projectile . | . . . AOE 23 | . 5 18 Terrain Rammed . | . . . Walls Destroyed . | . . . Machines Disabled . | . . . Actions | -11 -10 -10 --------- Run | Scr Mat Min Total 594 | 92 344 158 Wait 40 | 2 25 13 Move 476 | 69 292 115 Hop . | . . . Pick Up 14 | 9 3 2 Fast Attach 7 | 3 3 1 Attach 8 | 4 1 3 Detach 1 | . . 1 Swap 3 | . 2 1 Drop 7 | 2 2 3 Fire 35 | 3 16 16 Melee 3 | . . 3 Ram . | . . . Kick . | . . . Crush . | . . . Escape Stasis . | . . . Rewire . | . . . Trap . | . . . Miscellaneous . | . . . Route ------- -11/Scrapyard -10/Materials (discovered 2 exits: [*Mat] / [*Min]) -10/Mines (discovered 2 exits: [*Mat x2]) History --------- Turn | Location | Event 13 | -11/Scrapyard | Discovered new exit (range 14) 74 | -11/Scrapyard | Entered Materials 300 | -10/Materials | Build established: Mutant 361 | -10/Materials | Discovered new exit (range 6) 396 | -10/Materials | Discovered new exit (range 12) 406 | -10/Materials | Entered Mines 423 | -10/Mines | Met a Derelict bent on vengeance 429 | -10/Mines | Discovered new exit (range 5) 478 | -10/Mines | Assisted by bots powering up and referring to "LRC-V3" 500 | -10/Mines | Discovered new exit (range 8) 543 | -10/Mines | Assembled infested the area 576 | -10/Mines | Core integrity fell below 50% 586 | -10/Mines | Core integrity fell below 20% 587 | -10/Mines | Destroyed by as-84722 with Assembled Heavy Rifle Last Messages --------------- 00562_ as-93328 destroyed. 00562_ as-40213 destroyed. 00562_ as-41057 destroyed. 00563_ D-53 Grenadier destroyed. 00564_ as-35591 destroyed. 00564_ as-47661 destroyed. 00564_ as-92110 destroyed. 00566_ Wheel destroyed. 00567_ The unstable cave ceiling collapses. 00570_ Lgt. Nuclear Core destroyed. 00572_ The unstable cave ceiling collapses. 00572_ Terrain Scanner destroyed. 00573_ R-06 Scavenger collects Wheel. 00575_ as-94451 destroyed. 00579_ Com. Wheel destroyed. 00581_ as-77428 destroyed. 00583_ Acquired 12 matter. 00584_ The unstable cave ceiling collapses. 00584_ Grenade Launcher destroyed. 00586_ Acquired 37 matter. Map ----- +----------------------------------------------------+ | ?????????????????????????????????????????????????? | | ?????????????????????????????????????????????????? | | ?????????????????????????????????????????????????? | | ?????????????????????????????????????????????????? | | ?????????????????????????????????????????????????? | | ?????????????????????????????????????????????????? | | ?????????????????????????????????????????????????? | | ?????????????????????????????????????????????????? | | ?????????????????????????????????????????????????? | | ?????????????????????????????????????????????????? | | ??????????????????????????#??? ??????????????????? | | ????????????????????????? ??? ##????????????????? | | ?????????????#???????????" ### ##???????????????? | | ?????????????????????????" #???????????????? | | ?????????????########???"" #???????????????? | | ????????????## ##????? ????????????????? | | ????????????# #????? ###??????????????? | | ????????????# < #????? ##?????????????? | | ???#????????## ##?#?#? % ##????????????? | | ?????????????## #?##?? %% ###??????????? | | ??????????#???# ##???## a# #??????????? | | ????####?????## ##???# # #####??????? | | ???## ###???# ##??# a a a ???????? | | ???# #????# ## #??# % a#?????????? | | ???# #????# #### #### #????????????? | | ?#?# #?#??# #?## k @% % #????????????? | | ?#### #????# ### ### # ### #????#????? | | ?#% * ##???# ## #### a #?????????? | | ##% ##### ## ###?# "" ""#??????? | | ?# % ## ##??# ?????? | | ?##### ## ###### ?????? | | ???## ########## ### % ??????? | | ??## #????????## # ??????? | | ?## #?????????## " ??????? | | ## ##??????????## # ???????? | | # < ##????????#?#?## ## ???????? | | # ###?#????????#????##### ????????? | | ##??????????#?#????????" ????????? | | #??????????????????????# ??????????? | | #??????#???????????????# ????????????? | | #???#?#???#???????????# ???????????????? | | #??????????????????????###"#?????????????????? | | # ##????????????????????????????????????????????? | | ####?????????????????????????????????????????????? | | ?????????????????????????????????????????????????? | | ?????????????????????????????????????????????????? | | ?????????????????????????????????????????????????? | | | | | | | +----------------------------------------------------+ Best States ------------- Heat Dissipation 25 Energy Generation 14 Energy Capacity 250 Matter Stores 300 Matter Capacity 300 Sight Range 16 Terrain Scan Range 14 Terrain Scan Density 10 Evasion (%) 50 Item Schematics ----------------- None Robot Schematics ------------------ None Fabricated ------------ Nothing Alien Tech Used ----------------- None Achievements -------------- None Challenges ------------ None Game ------ Seed ChainBackupVibroblade Manual? 0 Play Time 00:13:13 Cumulative 3.9 hours Start 2021.10.14 @ 19:30:18 End 2021.10.14 @ 19:43:32 Sessions 1 Manual Loads 0 Difficulty Rogue Special Mode None Game No. 6 Rogue 6 Adventurer 0 Explorer 0 Win Type - Total 0 Types 0/0/0/0/0/0/0/0/0 Lore% 7 Gallery% 6 Achievement% 8 Wizard Run 0 Options --------- ASCII 0 Keyboard 0 Movement Mouse Keybinds 0 Fullscreen 2 Font 18/SmallcapsGlow Map View 76x50 Tactical HUD 1 Map Filters NONE Filters NONE Steam 1 RUN: 1094437b-5dd7-4126-9600-9659929af779